bitfinex/quotes_ETHUSD_20250603
["timestamp","ask_amount","ask_price","bid_price","bid_amount"]
[1748918178112,0.778,2634.1,2633.4,9.081]
[1748918178311,0.778,2634.1,2633.4,1.081]
[1748918178477,3.79676699,2633.9,2633.4,9.081]
[1748918179602,1.29009584,2634.1,2633.4,9.081]
[1748918179803,0.778,2634.1,2633.6,3.79701076]
[1748918180515,4.5743702,2634.1,2633.5,3.79716802]
[1748918180681,3.79650721,2634.0,2633.4,4.87829525]
[1748918180882,3.79650721,2634.0,2633.4,5.75195792]
[1748918182109,3.991,2634.2,2633.2,1.081]
[1748918182350,3.79735317,2633.5,2633.2,1.081]
[1748918182532,3.79762794,2633.3,2632.7,3.79827665]
[1748918182741,4.60150341,2632.2,2632.1,0.02]
[1748918183052,12.08203034,2632.2,2632.1,0.02]
[1748918183228,8.62450341,2632.2,2632.1,0.02]
[1748918184132,8.62450341,2632.2,2631.4,1.081]
[1748918184133,0.7616,2632.1,2631.1,0.02]
[1748918184337,3.79986616,2631.7,2631.1,1.101]
[1748918184495,4.025,2631.6,2631.1,1.101]
[1748918185499,3.80013112,2631.5,2631.1,1.101]
[1748918186538,0.56343772,2631.4,2631.1,1.101]
[1748918186695,0.7575,2631.2,2631.1,0.02]
[1748918186895,9.65656186,2631.2,2631.1,0.02]
[1748918187153,9.30438558,2631.2,2631.1,0.02]
[1748918187364,9.65633742,2631.2,2631.1,0.02]
[1748918187493,5.29263223,2631.2,2631.1,0.02]
[1748918187694,0.7575,2631.2,2631.1,0.02]
[1748918188510,0.7594,2631.5,2631.1,0.02]
[1748918188699,4.7864,2631.8,2631.2,3.80047959]
[1748918188899,4.7864,2631.8,2631.3,1.093]
[1748918189115,0.77425232,2631.7,2631.3,1.093]
[1748918189406,0.5630761,2631.6,2631.3,4.89333476]
[1748918189620,1.05582529,2631.5,2631.4,3.80013285]
[1748918189832,0.35193174,2631.5,2631.4,3.80013285]
[1748918190032,0.35193174,2631.5,2631.4,11.80013285]
[1748918190257,0.35193174,2631.5,2631.4,13.47755709]
[1748918190548,0.70400846,2631.5,2631.4,13.47755709]
[1748918190836,0.35193174,2631.5,2631.4,13.47755709]
[1748918194937,0.35193174,2631.5,2631.4,14.02755709]
[1748918195542,0.35193174,2631.5,2631.4,20.49435315]
[1748918198051,0.35193174,2631.5,2631.4,25.26435315]
[1748918198766,0.35193174,2631.5,2631.4,29.27735315]
[1748918198982,0.35193174,2631.5,2631.4,25.26435315]
[1748918199202,0.35193174,2631.5,2631.4,19.89055709]
[1748918199848,3.78951899,2632.5,2631.7,3.79977706]
[1748918200073,4.57928725,2632.4,2631.8,8.0]
[1748918200670,3.79899109,2632.3,2631.7,3.79977706]
[1748918200846,4.57920129,2632.4,2631.9,1.093]
[1748918201393,4.57920129,2632.4,2632.0,1.093]
[1748918201551,3.79898211,2632.3,2632.0,1.093]
[1748918201750,8.58920713,2632.4,2632.0,1.093]
[1748918201951,8.58920713,2632.4,2631.7,3.79975907]
[1748918202167,3.79896366,2632.3,2631.8,1.093]
[1748918202365,8.58922247,2632.4,2631.8,1.093]
[1748918202568,0.82885613,2632.3,2631.8,1.093]
[1748918202898,0.8016,2632.2,2631.8,4.89266354]
[1748918203097,0.8016,2632.2,2631.8,1.093]
[1748918203588,0.8016,2632.2,2631.8,4.89258583]
[1748918204388,0.8016,2632.2,2631.8,1.093]
[1748918204560,0.8016,2632.2,2631.8,4.89258855]
[1748918205204,0.8016,2632.2,2631.9,3.79950582]
[1748918205695,0.8016,2632.2,2631.8,1.093]
[1748918205903,0.8016,2632.2,2631.9,3.79952862]
[1748918206105,0.8016,2632.2,2631.9,3.79953645]
[1748918206661,0.8016,2632.2,2632.0,3.79938297]
[1748918207406,0.8016,2632.2,2632.0,3.79936581]
[1748918207922,0.8016,2632.2,2631.9,3.79953569]
[1748918208974,0.7529,2632.6,2632.1,3.79924774]
[1748918209206,3.998,2632.5,2632.1,3.79924774]
[1748918209508,0.7529,2632.6,2632.0,3.79930753]
[1748918209664,4.7509,2632.6,2632.1,3.79924774]
[1748918209998,8.54953465,2632.6,2632.0,3.79933344]
[1748918210212,0.7529,2632.6,2632.0,4.836847]
[1748918210498,3.7986884,2632.5,2632.0,1.03748331]
[1748918210803,3.7986884,2632.5,2631.9,12.66870991]
[1748918212415,3.79881496,2632.4,2631.9,12.66870991]
[1748918212582,3.79873257,2632.5,2631.9,12.66870991]
[1748918214572,3.79867046,2632.5,2631.9,12.66876381]
[1748918215211,4.55146718,2632.6,2631.9,12.66876381]
[1748918215517,3.79874861,2632.5,2631.9,12.66876381]
[1748918216889,3.79901841,2632.3,2632.0,1.093]
[1748918217527,3.79888523,2632.4,2632.0,1.093]
[1748918219500,4.55147176,2632.6,2632.1,1.07]
[1748918219501,3.7990766,2632.3,2632.1,1.07]
[1748918219826,0.8288,2632.2,2632.1,1.07]
[1748918220592,0.8288,2632.2,2632.0,3.79929658]
[1748918220808,0.8288,2632.2,2632.1,1.07]
[1748918222132,3.982,2632.5,2632.3,3.79883278]
[1748918222308,3.982,2632.5,2632.1,5.65508305]
[1748918222504,3.982,2632.5,2632.3,3.79892818]
[1748918222705,0.8248,2632.6,2632.1,1.8559]
[1748918222706,0.8248,2632.6,2632.2,3.83704257]
[1748918222947,4.8068,2632.6,2632.2,0.03798912]
[1748918223154,4.8068,2632.6,2631.7,8.0]
[1748918223310,3.79895908,2632.3,2632.2,1.07]
[1748918223514,3.7988784,2632.4,2632.2,1.07]
[1748918223913,3.79895908,2632.3,2632.2,1.07]
[1748918224113,4.8068,2632.6,2632.2,1.07]
[1748918224321,5.68837093,2632.6,2632.2,1.07]
[1748918224627,3.983,2632.5,2632.2,1.07]
[1748918225537,3.982,2632.5,2632.2,1.07]
[1748918225908,0.8248,2632.6,2632.2,4.86908805]
[1748918226112,8.60434476,2632.6,2632.2,1.07]
[1748918226425,4.19239426,2632.7,2632.4,3.46123226]
[1748918226758,0.21039426,2632.7,2632.5,3.79853147]
[1748918226974,0.21039426,2632.7,2632.6,3.46123226]
[1748918227346,0.21039426,2632.7,2632.4,7.2600027]
[1748918227533,0.21039426,2632.7,2632.1,1.07]
[1748918227534,3.79882451,2632.4,2632.1,1.07]
[1748918227728,4.82266964,2632.4,2632.1,1.07]
[1748918227928,3.984,2632.4,2632.1,1.07]
[1748918228236,0.7893,2632.6,2632.1,4.86916937]
[1748918228436,3.988,2632.4,2632.1,4.53123226]
[1748918229270,7.78685481,2632.4,2632.1,1.07]
[1748918229431,7.78685481,2632.4,2632.2,0.35591581]
[1748918229634,3.79909489,2632.3,2631.8,8.0]
[1748918229857,3.79904507,2632.3,2631.9,1.07]
[1748918231075,9.02431671,2632.4,2632.0,1.07]
[1748918231228,3.984,2632.3,2632.0,1.07]
[1748918231426,3.79871965,2632.5,2632.0,1.07]
[1748918231631,0.7893,2632.6,2632.2,3.79910341]
[1748918232180,0.7893,2632.6,2632.3,0.35589626]
[1748918232477,0.21039426,2632.7,2632.4,0.35588922]
[1748918232676,4.19239426,2632.7,2632.4,0.35588922]
[1748918233180,4.19139426,2632.7,2632.4,0.35588922]
[1748918233680,3.983,2632.9,2632.5,0.35585806]
[1748918233977,3.983,2632.9,2632.5,4.15446407]
[1748918234179,3.983,2632.9,2632.6,0.35583908]
[1748918234566,3.983,2632.9,2632.5,0.71170567]
[1748918235074,3.982,2633.1,2632.6,0.8186]
[1748918235277,3.981,2633.1,2632.7,3.79838188]
[1748918235495,3.981,2633.1,2632.8,1.07]
[1748918236003,3.981,2633.1,2632.9,0.35583675]
[1748918236169,7.77881034,2633.1,2632.8,1.07]
[1748918236371,4.60403761,2632.8,2632.7,0.3558524]
[1748918236703,4.60403761,2632.8,2632.7,1.26592132]
[1748918237798,4.60403761,2632.8,2632.7,0.19592132]
[1748918238709,1.01732112,2633.3,2632.8,3.79823761]
[1748918238886,4.99832112,2633.3,2632.8,3.79823761]
[1748918239086,8.79587377,2633.3,2632.7,11.99424902]
[1748918239302,3.79770578,2633.2,2632.7,8.19592132]
[1748918239612,3.982,2633.2,2632.8,3.79814291]
[1748918239933,3.982,2633.2,2632.9,3.79808818]
[1748918240067,3.982,2633.2,2632.8,3.7981747]
[1748918240570,1.01732112,2633.3,2632.8,2.40803904]
[1748918240815,4.99732112,2633.3,2632.8,6.20617843]
[1748918241024,1.01732112,2633.3,2632.8,6.20617843]
[1748918241187,4.19052112,2633.3,2632.8,6.20625294]
[1748918241527,0.21152112,2633.3,2632.9,11.79806687]
[1748918241735,4.18952112,2633.3,2632.9,13.23826959]
[1748918242019,4.18952112,2633.3,2632.9,9.44020272]
[1748918243271,4.18952112,2633.3,2632.9,13.23826291]
[1748918243813,7.98704697,2633.3,2632.9,9.44020272]
[1748918244313,4.18952112,2633.3,2632.9,9.44020272]
[1748918244713,4.18952112,2633.3,2632.9,13.23824924]
[1748918245718,4.18952112,2633.3,2632.9,9.44020272]
[1748918246079,4.18252112,2633.3,2632.9,9.44020272]
[1748918246279,4.18252112,2633.3,2632.9,13.23828635]
[1748918246616,0.21152112,2633.3,2632.9,9.44020272]
[1748918246863,0.21152112,2633.3,2633.2,18.25885134]
[1748918247380,0.0530677,2633.4,2633.3,8.0]
[1748918247682,0.0530677,2633.4,2633.2,8.0]
[1748918248292,0.0530677,2633.4,2633.3,8.0]
[1748918248804,0.0530677,2633.4,2633.2,3.79761085]
[1748918248805,0.0530677,2633.4,2633.1,4.60598548]
[1748918248979,0.0530677,2633.4,2633.2,1.39298141]
[1748918250115,0.8054677,2633.4,2633.0,9.32382863]
[1748918250319,4.60291956,2633.4,2633.1,1.059]
[1748918250478,0.8054677,2633.4,2633.1,1.059]
[1748918250881,4.60287598,2633.4,2633.0,9.32382863]
[1748918251081,0.0530677,2633.4,2633.1,1.41478668]
[1748918251318,3.85044597,2633.4,2633.2,1.059]
[1748918251519,3.85045586,2633.4,2633.2,1.059]
[1748918251692,3.85045586,2633.4,2633.0,9.32382863]
[1748918251882,3.85045586,2633.4,2633.0,8.0]
[1748918252087,3.85045586,2633.4,2633.1,1.059]
[1748918252979,4.0180677,2633.4,2632.9,8.0]
[1748918253182,3.79763549,2633.3,2633.0,1.059]
[1748918253382,3.79760653,2633.3,2633.0,1.059]
[1748918253619,4.0180677,2633.4,2632.7,3.99427103]
[1748918253798,3.79762008,2633.3,2633.1,1.059]
[1748918253983,7.81549874,2633.4,2633.1,1.059]
[1748918254180,7.81554904,2633.4,2633.1,1.059]
[1748918254591,3.79752262,2633.3,2633.2,0.35580042]
[1748918254795,3.79752262,2633.3,2633.1,1.059]
[1748918255021,7.81549471,2633.4,2633.1,1.059]
[1748918255183,7.81549471,2633.4,2633.2,1.059]
[1748918255385,3.79751642,2633.3,2633.2,1.059]
[1748918255581,4.0180677,2633.4,2633.2,1.41480532]
[1748918255780,8.67322793,2633.4,2633.3,0.35579993]
[1748918255980,8.67328982,2633.4,2633.1,1.059]
[1748918256935,8.67328982,2633.4,2632.7,0.19592132]
[1748918257139,8.67328982,2633.4,2632.8,4.85716352]
[1748918257343,8.67328982,2633.4,2632.9,3.45903208]
[1748918257845,3.79765009,2633.3,2632.9,3.45903208]
[1748918258220,4.87585572,2633.4,2632.9,3.45903208]
[1748918258545,3.79776624,2633.2,2633.0,1.059]
[1748918259247,4.28517392,2633.3,2633.0,1.059]
[1748918259436,3.79774159,2633.2,2632.7,3.6549534]
[1748918259749,4.28516653,2633.3,2633.1,1.059]
[1748918260114,3.79766064,2633.2,2633.1,1.059]
[1748918261315,5.00774229,2633.2,2633.1,1.059]
[1748918262559,5.00774229,2633.2,2632.7,7.45331112]
[1748918262727,5.00774229,2633.2,2632.8,1.059]
[1748918263373,1.21008165,2633.2,2632.8,1.059]
[1748918263867,3.79781637,2633.1,2632.7,3.6549534]
[1748918264071,5.77140106,2633.2,2632.9,1.059]
[1748918264365,1.00565511,2633.1,2632.9,1.059]
[1748918266342,1.97368165,2633.2,2632.9,1.059]
[1748918266549,0.7636,2633.2,2632.9,4.51803208]
[1748918266963,4.56127826,2633.2,2632.9,3.45903208]
[1748918267158,4.56127826,2633.2,2633.0,1.059]
[1748918268241,0.7636,2633.2,2633.0,1.059]
[1748918269675,4.56126724,2633.2,2633.0,1.059]
[1748918269864,2.00067528,2633.2,2633.0,1.059]
[1748918270059,3.959,2633.3,2633.0,1.059]
[1748918270261,0.8409677,2633.4,2633.0,1.059]
[1748918270572,3.959,2633.3,2633.1,3.45903208]
[1748918270732,0.0530677,2633.4,2633.1,3.45903208]
[1748918270937,0.0530677,2633.4,2633.3,3.45903208]
[1748918271438,0.0530677,2633.4,2633.1,4.51803208]
[1748918275369,0.0530677,2633.4,2633.1,8.31583311]
[1748918277588,0.0530677,2633.4,2633.3,3.45903208]
[1748918277792,0.7507,2633.3,2632.5,4.77]
[1748918277957,3.7977421,2633.2,2632.9,1.059]
[1748918278153,4.54825998,2633.3,2632.9,1.059]
[1748918278369,0.7507,2633.3,2632.9,4.51803208]
[1748918278567,4.54825138,2633.3,2632.9,4.51803208]
[1748918279792,3.79766424,2633.2,2632.9,4.51803208]
[1748918280093,4.63754697,2633.2,2633.0,1.054]
[1748918280869,0.83988273,2633.2,2633.0,1.054]
[1748918281074,0.7507,2633.3,2633.0,1.054]
[1748918281418,4.7097,2633.3,2633.1,3.45903208]
[1748918282408,4.54833297,2633.3,2633.1,3.45903208]
[1748918282590,0.7507,2633.3,2633.1,3.45903208]
[1748918282773,0.7507,2633.3,2633.0,1.054]
[1748918283114,4.54821696,2633.3,2633.0,1.054]
[1748918283579,0.7507,2633.3,2633.0,1.054]
[1748918284990,4.54822804,2633.3,2633.0,1.054]
[1748918285197,0.7507,2633.3,2633.0,1.054]
[1748918286099,4.54822538,2633.3,2633.0,1.054]
[1748918286325,0.85602931,2633.2,2632.3,0.35589626]
[1748918286459,4.0120677,2633.4,2632.4,4.8689213]
[1748918286460,0.8295,2633.1,2632.4,4.8689213]
[1748918286660,3.79826328,2632.8,2632.4,4.8689213]
[1748918286855,4.55770827,2632.7,2632.4,4.8689213]
[1748918287404,0.7593,2632.7,2632.4,4.8689213]
[1748918289504,4.55770558,2632.7,2632.4,4.8689213]
[1748918289911,0.7593,2632.7,2632.4,4.8689213]
[1748918290606,0.7593,2632.7,2632.4,1.40988922]
[1748918290828,4.5577674,2632.7,2632.4,1.40988922]
[1748918291193,5.39336359,2632.7,2632.4,1.40988922]
[1748918292832,5.39336359,2632.7,2632.4,0.35588922]
[1748918293133,5.39336359,2632.7,2632.4,4.8689213]
[1748918293134,1.59489619,2632.7,2632.4,4.8689213]
[1748918293329,0.7593,2632.7,2632.4,4.8689213]
[1748918294549,4.55772494,2632.7,2632.4,4.8689213]
[1748918294951,4.55772494,2632.7,2632.4,3.8149213]
[1748918295095,4.55772494,2632.7,2632.4,4.8689213]
[1748918295815,3.79853175,2632.6,2632.4,4.8689213]
[1748918296014,4.55773939,2632.7,2632.4,3.45903208]
[1748918296213,0.7593,2632.7,2632.4,3.45903208]
[1748918296726,4.55768748,2632.7,2632.4,3.45903208]
[1748918297973,3.79869133,2632.5,2632.2,1.054]
[1748918298444,3.7988441,2632.4,2632.2,1.054]
[1748918299148,3.79916009,2632.2,2632.0,1.054]
[1748918299340,3.79902204,2632.3,2632.0,1.054]
[1748918299858,3.7483,2632.6,2632.0,4.51303208]
[1748918300042,3.79877994,2632.5,2632.0,4.51303208]
[1748918301351,4.50297767,2632.6,2632.2,3.45903208]
[1748918301653,7.54686868,2632.6,2632.2,3.45903208]
[1748918301861,3.79884948,2632.4,2632.2,3.45903208]
[1748918302020,4.56274948,2632.4,2632.2,3.45903208]
[1748918302418,7.54684545,2632.6,2632.2,3.45903208]
[1748918302419,3.79842724,2632.7,2632.2,4.23423208]
[1748918302616,0.7639,2632.9,2632.6,3.45903208]
[1748918302853,0.7639,2633.1,2632.8,3.45903208]
[1748918303066,0.7639,2633.1,2632.6,3.45903208]
[1748918303067,4.56181206,2633.1,2632.6,3.45903208]
[1748918303437,4.56181206,2633.1,2631.9,12.34943695]
[1748918303438,3.80038219,2631.4,2631.1,0.02]
[1748918303641,4.083,2631.3,2631.1,0.02]
[1748918303877,4.083,2631.3,2631.1,3.47903208]
[1748918308563,3.8002234,2631.5,2631.1,3.47903208]
[1748918308753,4.28449669,2631.4,2631.1,3.47903208]
[1748918308950,4.073,2631.4,2631.1,3.47903208]
[1748918310069,0.21148662,2631.3,2631.1,3.47903208]
[1748918310250,4.073,2631.4,2631.1,3.47903208]
[1748918310450,7.87327436,2631.4,2631.1,3.47903208]
[1748918310776,7.87327436,2631.4,2631.1,0.02]
[1748918310978,4.073,2631.4,2631.1,0.02]
[1748918311145,3.80040284,2631.3,2631.1,0.02]
[1748918311481,4.073,2631.4,2631.1,0.02]
[1748918311645,3.80048682,2631.3,2631.1,0.02]
[1748918312546,3.80054727,2631.2,2631.1,0.02]
[1748918314057,4.96793213,2631.2,2631.1,0.02]
[1748918314242,5.72893213,2631.2,2631.1,0.02]
[1748918314647,6.08145725,2631.2,2631.1,0.02]
[1748918315348,5.72893213,2631.2,2631.1,0.02]
[1748918315961,6.08145549,2631.2,2631.1,0.02]
[1748918317684,6.29298988,2631.2,2631.1,0.02]
[1748918317889,6.08145549,2631.2,2631.1,0.02]
[1748918318086,6.63145549,2631.2,2631.1,0.02]
[1748918318570,6.43397451,2631.2,2631.1,0.02]
[1748918318770,10.91499738,2631.2,2631.1,0.02]
[1748918319088,10.56248054,2631.2,2631.1,0.02]
[1748918319379,10.77395739,2631.2,2631.1,0.02]
[1748918319584,10.56048054,2631.2,2631.1,0.02]
[1748918319786,6.50448054,2631.2,2631.1,0.02]
[1748918320182,9.74555032,2631.2,2631.1,0.02]
[1748918320384,10.09805393,2631.2,2631.1,0.02]
[1748918320588,9.33705393,2631.2,2631.1,0.02]
[1748918320759,9.33605393,2631.2,2631.1,0.02]
[1748918322197,5.28105393,2631.2,2631.1,0.02]
[1748918322488,9.33305393,2631.2,2631.1,0.02]
[1748918323053,5.28105393,2631.2,2631.1,0.02]
[1748918323292,9.33105393,2631.2,2631.1,0.02]
[1748918323692,9.90583278,2631.2,2631.1,0.02]
[1748918324393,9.33105393,2631.2,2631.1,0.02]
[1748918325065,9.32805393,2631.2,2631.1,0.02]
[1748918327056,10.13915393,2631.2,2631.1,0.02]
[1748918327260,10.35039128,2631.2,2631.1,0.02]
[1748918327491,10.56163408,2631.2,2631.1,0.02]
[1748918327703,12.34374199,2631.2,2631.1,0.02]
[1748918328474,8.08549919,2631.2,2631.1,0.02]
[1748918328716,12.12749919,2631.2,2631.1,0.02]
[1748918337591,20.67749919,2631.2,2631.1,0.02]
[1748918338213,20.8886788,2631.2,2631.1,0.02]
[1748918338723,21.31101191,2631.2,2631.1,0.02]
[1748918339820,21.52217929,2631.2,2631.1,0.02]
[1748918340340,21.3110122,2631.2,2631.1,0.02]
[1748918340907,16.7190122,2631.2,2631.1,0.02]
[1748918341422,20.7390122,2631.2,2631.1,0.02]
[1748918342546,21.2890122,2631.2,2631.1,0.02]
[1748918343249,21.49992192,2631.2,2631.1,0.02]
[1748918343437,21.2890122,2631.2,2631.1,0.02]
[1748918343953,21.49990463,2631.2,2631.1,0.02]
[1748918344151,21.2890122,2631.2,2631.1,0.02]
[1748918347063,17.2690122,2631.2,2631.1,0.02]
[1748918347344,8.7190122,2631.2,2631.1,0.02]
[1748918347543,12.7300122,2631.2,2631.1,0.02]
[1748918347848,20.7300122,2631.2,2631.1,0.02]
[1748918348854,20.7280122,2631.2,2631.1,0.02]
[1748918349013,6.12580429,2631.2,2631.1,0.02]
[1748918349220,10.13480429,2631.2,2631.1,0.02]
[1748918352224,10.95210429,2631.2,2631.1,0.02]
[1748918358664,6.12580429,2631.2,2631.1,0.02]
[1748918358827,10.11880429,2631.2,2631.1,0.02]
[1748918359357,11.58761602,2631.2,2631.1,0.02]
[1748918359565,7.59461602,2631.2,2631.1,0.02]
[1748918359874,11.58661602,2631.2,2631.1,0.02]
[1748918367865,19.58661602,2631.2,2631.1,0.02]
[1748918372257,3.80141412,2630.6,2630.5,0.75635129]
[1748918373165,7.7743423,2630.7,2630.5,0.75635129]
[1748918373884,3.80141412,2630.6,2630.5,0.75635129]
[1748918374882,3.973,2630.7,2630.5,0.75635129]
[1748918375081,3.80141412,2630.6,2630.5,0.75635129]
[1748918376857,7.77437807,2630.7,2630.5,0.75635129]
[1748918377354,3.969,2630.6,2630.5,0.75635129]
[1748918377555,7.77041412,2630.6,2630.5,0.75635129]
[1748918381406,3.80157515,2630.5,2630.3,0.7818]
[1748918382119,7.77047233,2630.6,2630.3,0.7818]
[1748918382411,3.969,2630.6,2630.3,0.7818]
[1748918382584,7.77043536,2630.6,2630.3,0.7818]
[1748918383312,3.969,2630.6,2630.3,0.7818]
[1748918383915,7.77041636,2630.6,2630.3,0.7818]
[1748918384073,3.800995,2630.9,2630.3,0.7818]
[1748918384407,3.8012792,2630.7,2630.3,1.69768017]
[1748918384809,3.80102464,2630.9,2630.5,0.7528]
[1748918384810,3.80108654,2630.9,2630.5,0.7528]
[1748918385013,3.969,2630.6,2630.5,0.7528]
[1748918385173,7.77041412,2630.6,2630.5,0.7528]
[1748918386120,3.969,2630.6,2630.5,0.7528]
[1748918387591,7.77041412,2630.6,2630.5,0.7528]
[1748918388119,7.77041412,2630.6,2630.1,0.02]
[1748918388294,3.80166818,2630.5,2630.1,1.086]
[1748918388476,7.77047512,2630.6,2630.1,1.086]
[1748918388681,3.8015809,2630.5,2630.1,1.086]
[1748918389316,7.77050536,2630.6,2630.1,1.086]
[1748918389519,7.77050536,2630.6,2630.1,1.65300582]
[1748918389818,7.77044016,2630.6,2630.1,5.45507789]
[1748918390004,7.77044016,2630.6,2630.1,1.65300582]
[1748918393526,7.77044016,2630.6,2630.1,0.58700582]
[1748918393700,7.77044016,2630.6,2630.1,1.65300582]
[1748918394300,3.80157621,2630.5,2630.1,1.65300582]
[1748918394799,7.77048207,2630.6,2630.1,1.65300582]
[1748918395423,7.77048207,2630.6,2630.1,0.58700582]
[1748918395728,7.770481,2630.6,2630.1,0.02]
[1748918396025,7.770481,2630.6,2630.2,0.7786]
[1748918399776,3.80156661,2630.5,2630.2,0.7786]
[1748918400050,3.80174932,2630.4,2630.2,0.7786]
[1748918400236,3.968,2630.3,2630.2,0.7786]
[1748918401861,3.968,2630.3,2630.1,0.02]
[1748918402361,4.24410573,2630.2,2630.1,0.02]
[1748918403246,0.44211349,2630.2,2630.1,0.02]
[1748918403438,3.80199224,2630.2,2630.1,0.02]
[1748918405681,4.60119224,2630.2,2630.1,0.02]
[1748918406548,12.60119224,2630.2,2630.1,0.02]
[1748918407560,3.80199224,2630.2,2630.1,0.02]
[1748918407766,7.76999224,2630.2,2630.1,0.02]
[1748918408099,3.80199224,2630.2,2630.1,0.02]
[1748918408447,7.76999224,2630.2,2630.1,0.02]
[1748918408874,8.92717657,2630.2,2630.1,0.02]
[1748918409073,4.95917657,2630.2,2630.1,0.02]
[1748918409292,8.92717657,2630.2,2630.1,0.02]
[1748918409498,4.95917657,2630.2,2630.1,0.02]
[1748918409892,8.92717657,2630.2,2630.1,0.02]
[1748918410568,9.69087657,2630.2,2630.1,0.02]
[1748918413176,3.80254435,2629.9,2629.5,3.45903208]
[1748918413397,3.968,2629.8,2629.5,3.45903208]
[1748918414398,7.77059862,2629.8,2629.5,3.45903208]
[1748918414607,3.968,2629.8,2629.5,3.45903208]
[1748918415104,4.56581126,2630.2,2629.7,3.45903208]
[1748918415305,3.80233871,2630.0,2629.1,3.82354153]
[1748918415491,3.968,2630.1,2629.3,3.45903208]
[1748918415492,3.8026606,2629.8,2629.3,3.45903208]
[1748918415695,3.968,2629.7,2629.3,3.45903208]
[1748918416094,7.77076852,2629.7,2629.3,3.45903208]
[1748918416300,7.77076852,2629.7,2629.1,0.02]
[1748918416301,3.80291043,2629.6,2629.1,4.53803208]
[1748918417312,3.80295112,2629.6,2629.1,0.02]
[1748918417621,4.71403572,2629.6,2629.1,3.47903208]
[1748918417934,3.80295112,2629.6,2629.1,3.47903208]
[1748918418224,3.80326034,2629.4,2629.1,0.02]
[1748918418425,3.968,2629.3,2629.1,0.02]
[1748918418635,7.77137355,2629.3,2629.1,0.02]
[1748918418796,3.968,2629.3,2629.1,0.02]
[1748918419321,7.77132266,2629.3,2629.1,0.02]
[1748918419830,3.968,2629.3,2629.1,0.02]
[1748918420605,3.968,2629.3,2629.1,3.47903208]
[1748918420932,3.968,2629.3,2629.1,0.85417196]
[1748918421136,3.968,2629.3,2629.1,0.02]
[1748918421434,3.8034383,2629.2,2629.1,0.02]
[1748918423434,8.524725,2629.3,2629.1,0.02]
[1748918423635,3.8034383,2629.2,2629.1,0.02]
[1748918424645,7.7714383,2629.2,2629.1,0.02]
[1748918424998,9.00425258,2629.2,2629.1,0.02]
[1748918428143,5.03625258,2629.2,2629.1,0.02]
[1748918428329,9.00425258,2629.2,2629.1,0.02]
[1748918431524,9.78715258,2629.2,2629.1,0.02]
[1748918435059,17.78715258,2629.2,2629.1,0.02]
[1748918437162,3.80416175,2628.7,2628.1,0.02]
[1748918437388,4.56258547,2628.2,2628.1,0.02]
[1748918437661,8.53058547,2628.2,2628.1,0.02]
[1748918437963,12.56258547,2628.2,2628.1,0.02]
[1748918438166,8.53058547,2628.2,2628.1,0.02]
[1748918439173,1.3625,2628.1,2627.1,0.02]
[1748918439376,3.80734818,2626.5,2626.1,0.02]
[1748918439671,0.7734,2627.0,2626.1,0.02]
[1748918439834,3.80734818,2626.5,2626.1,0.02]
[1748918440260,3.80734818,2626.5,2626.2,1.058]
[1748918440672,3.80734818,2626.5,2626.3,1.058]
[1748918441183,3.80734818,2626.5,2626.1,0.02]
[1748918441385,3.80734818,2626.5,2626.1,1.078]
[1748918441882,7.78434818,2626.5,2626.1,1.078]
[1748918442062,7.73434818,2626.5,2626.1,1.078]
[1748918442903,7.73334818,2626.5,2626.1,1.078]
[1748918443187,3.75734818,2626.5,2626.1,1.078]
[1748918443376,7.73334818,2626.5,2626.2,1.058]
[1748918443572,3.80688644,2626.9,2626.4,3.61375662]
[1748918443881,3.80688686,2626.9,2626.5,0.36137566]
[1748918444487,3.80667296,2627.0,2626.5,0.36137566]
[1748918444692,0.55,2627.8,2626.5,0.36137566]
[1748918444693,0.8081,2627.6,2626.8,3.45903208]
[1748918444851,7.78433809,2627.2,2626.8,3.45903208]
[1748918445045,7.78622121,2627.3,2626.9,0.04]
[1748918445250,7.78622121,2627.3,2627.0,1.058]
[1748918445691,3.98,2627.3,2627.0,1.058]
[1748918445892,3.98,2627.5,2627.0,1.058]
[1748918446380,0.21086015,2627.2,2627.0,4.97273529]
[1748918446780,0.21086015,2627.2,2627.0,8.7792359]
[1748918447187,0.21086015,2627.2,2627.0,9.16431667]
[1748918447575,0.21086015,2627.2,2627.0,8.7792359]
[1748918449106,0.21086015,2627.2,2627.0,4.97273529]
[1748918449302,0.21086015,2627.2,2627.1,0.88193592]
[1748918450465,0.21086015,2627.2,2627.1,4.68841454]
[1748918450897,0.21086015,2627.2,2627.1,5.78741454]
[1748918451201,0.21086015,2627.2,2626.8,1.059]
[1748918451403,3.80658286,2627.1,2626.8,1.059]
[1748918451604,3.80658286,2627.1,2627.0,3.45903208]
[1748918451980,3.80658286,2627.1,2627.0,4.51803208]
[1748918452499,4.01723355,2627.2,2626.6,0.04]
[1748918452799,4.01723624,2627.2,2627.0,4.51803208]
[1748918452988,0.21086015,2627.2,2627.0,3.45903208]
[1748918453188,4.01719388,2627.2,2627.1,4.51803208]
[1748918453566,4.01719388,2627.2,2627.1,1.059]
[1748918453970,4.01719388,2627.2,2627.0,3.45903208]
[1748918454186,4.01719388,2627.2,2627.1,1.059]
[1748918455690,0.21086015,2627.2,2627.1,1.059]
[1748918459385,4.01719388,2627.2,2627.1,1.059]
[1748918461101,0.21086015,2627.2,2627.1,1.059]
[1748918461304,4.01721682,2627.2,2627.1,1.065]
[1748918461677,0.21086015,2627.2,2627.1,1.065]
[1748918461882,0.21086015,2627.2,2627.1,1.51740321]
[1748918462077,0.21086015,2627.2,2627.1,5.36388183]
[1748918463014,0.21086015,2627.2,2627.1,1.55740321]
[1748918463403,0.21086015,2627.2,2627.1,5.36388183]
[1748918464899,0.8086,2628.2,2627.4,3.80598678]
[1748918465101,0.8086,2628.2,2628.0,3.45903208]
[1748918465384,3.80503024,2628.1,2628.0,4.52403208]
[1748918466016,3.80531983,2627.9,2627.8,3.45903208]